bitfinex/quotes_ETHUSD_20250920
["timestamp","ask_amount","ask_price","bid_price","bid_amount"]
[1758370142988,5.56901798,4476.2,4476.1,0.001]
[1758370146944,5.81231798,4476.2,4476.1,0.001]
[1758370150948,5.56901798,4476.2,4476.1,0.001]
[1758370151810,5.81231798,4476.2,4476.1,0.001]
[1758370152212,5.56901798,4476.2,4476.1,0.001]
[1758370155061,5.79951798,4476.2,4476.1,0.001]
[1758370157281,5.56901798,4476.2,4476.1,0.001]
[1758370157439,5.79951798,4476.2,4476.1,0.001]
[1758370157895,5.79981904,4476.2,4476.1,0.001]
[1758370160697,5.79990524,4476.2,4476.1,0.001]
[1758370164697,5.79986516,4476.2,4476.1,0.001]
[1758370175843,9.83514179,4476.2,4476.1,0.001]
[1758370176009,9.83505895,4476.2,4476.1,0.001]
[1758370176412,9.83496184,4476.2,4476.1,0.001]
[1758370176929,10.06546184,4476.2,4476.1,0.001]
[1758370179946,13.76446184,4476.2,4476.1,0.001]
[1758370180639,13.76448573,4476.2,4476.1,0.001]
[1758370206455,13.53398573,4476.2,4476.1,0.001]
[1758370207131,13.76398573,4476.2,4476.1,0.001]
[1758370207330,13.53398573,4476.2,4476.1,0.001]
[1758370207532,13.76398573,4476.2,4476.1,0.001]
[1758370208366,13.53398573,4476.2,4476.1,0.001]
[1758370208666,13.76398573,4476.2,4476.1,0.001]
[1758370209774,13.53398573,4476.2,4476.1,0.001]
[1758370210635,13.76398573,4476.2,4476.1,0.001]
[1758370220570,13.53398573,4476.2,4476.1,0.001]
[1758370221393,13.77498573,4476.2,4476.1,0.001]
[1758370222792,13.53398573,4476.2,4476.1,0.001]
[1758370232100,13.77498573,4476.2,4476.1,0.001]
[1758370237008,13.53398573,4476.2,4476.1,0.001]
[1758370237497,9.83498573,4476.2,4476.1,0.001]
[1758370237702,5.5692091,4476.2,4476.1,0.001]
[1758370237899,9.2682091,4476.2,4476.1,0.2427]
[1758370238599,5.5692091,4476.2,4476.1,0.2427]
[1758370238807,9.2682091,4476.2,4476.1,0.2427]
[1758370242730,9.26834041,4476.2,4476.1,0.2427]
[1758370243225,5.56934041,4476.2,4476.1,0.2427]
[1758370243399,9.26834041,4476.2,4476.1,0.2427]
[1758370246441,5.56934041,4476.2,4476.1,0.2427]
[1758370246596,9.26834041,4476.2,4476.1,0.2427]
[1758370246826,9.26832976,4476.2,4476.1,0.2427]
[1758370247025,9.26832976,4476.2,4476.1,0.001]
[1758370251572,9.25832976,4476.2,4476.1,0.001]
[1758370252967,9.04883873,4476.2,4476.1,0.001]
[1758370253272,9.25850476,4476.2,4476.1,0.001]
[1758370254081,5.55950476,4476.2,4476.1,0.001]
[1758370254246,2.55950476,4476.2,4476.1,0.001]
[1758370254455,2.55950476,4476.2,4476.1,0.2484]
[1758370254641,5.34983873,4476.2,4476.1,0.2484]
[1758370254842,5.55946399,4476.2,4476.1,0.2484]
[1758370255049,0.3354262,4476.2,4476.1,0.2484]
[1758370255250,2.35983873,4476.2,4476.1,0.2484]
[1758370255472,2.56946399,4476.2,4476.1,0.2484]
[1758370255637,0.3354262,4476.2,4476.1,0.2484]
[1758370256040,2.56932386,4476.2,4476.1,0.2484]
[1758370258180,2.56932386,4476.2,4476.1,1.0404]
[1758370258181,0.33528607,4476.2,4476.1,1.0404]
[1758370258396,0.12580094,4476.2,4476.1,1.0404]
[1758370258890,0.12554794,4476.2,4476.1,1.0404]
[1758370260987,0.002,4476.3,4476.2,0.792]
[1758370261142,0.002,4476.3,4476.2,1.06174037]
[1758370270424,0.002,4476.3,4476.2,1.0394]
[1758370273635,0.002,4476.3,4476.2,0.792]
[1758370273819,0.12754794,4476.3,4476.1,0.33089397]
[1758370274006,0.2324,4476.2,4476.1,4.82089397]
[1758370274712,2.46643779,4476.2,4476.1,4.82089397]
[1758370274924,2.59198573,4476.2,4476.1,4.82089397]
[1758370279858,2.59398573,4476.2,4476.1,4.82089397]
[1758370280697,0.35994794,4476.2,4476.1,4.82089397]
[1758370283272,0.12754794,4476.2,4476.1,4.82089397]
[1758370283659,0.12754794,4476.2,4476.1,5.06809397]
[1758370284173,0.12754794,4476.2,4476.1,4.82089397]
[1758370286569,0.12754794,4476.2,4476.1,5.06809397]
[1758370286776,0.12754794,4476.2,4476.1,4.82089397]
[1758370290183,0.12754794,4476.2,4476.1,5.06809397]
[1758370290584,0.12754794,4476.2,4476.1,4.82089397]
[1758370292392,0.12754794,4476.2,4476.1,4.491]
[1758370315528,0.12754794,4476.2,4476.1,4.7274]
[1758370315828,0.12754794,4476.2,4476.1,4.491]
[1758370317403,0.12754794,4476.2,4476.1,4.7274]
[1758370318090,0.12754794,4476.2,4476.1,6.96148771]
[1758370318296,0.002,4476.2,4476.1,8.3076358]
[1758370326023,0.002,4476.2,4476.1,8.0712358]
[1758370326432,0.002,4476.2,4476.1,8.3176358]
[1758370327752,0.002,4476.2,4476.1,8.0712358]
[1758370329656,0.002,4476.2,4476.1,8.3176358]
[1758370332043,0.002,4476.2,4476.1,8.0712358]
[1758370341131,0.002,4476.2,4476.1,8.2978358]
[1758370344042,0.002,4476.2,4476.1,8.0712358]
[1758370344784,0.002,4476.2,4476.1,8.19685503]
[1758370348394,0.002,4476.2,4476.1,8.42345503]
[1758370348879,0.002,4476.2,4476.1,8.19685503]
[1758370352775,0.002,4476.2,4476.1,8.42345503]
[1758370354288,0.002,4476.2,4476.1,8.19685503]
[1758370361923,0.002,4476.2,4476.1,8.42345503]
[1758370367927,0.002,4476.2,4476.1,8.19685503]
[1758370370950,0.002,4476.2,4476.1,10.12885503]
[1758370410436,0.1808,4476.4,4476.2,3.02603779]
[1758370410637,0.1808,4476.4,4476.3,5.97878051]
[1758370410936,0.30658908,4476.4,4476.3,5.97878051]
[1758370411337,0.30658908,4476.4,4476.3,8.2127684]
[1758370412448,0.12578908,4476.4,4476.3,8.2127684]
[1758370413643,0.35258908,4476.4,4476.3,8.2127684]
[1758370414248,0.35258908,4476.4,4476.3,10.1447684]
[1758370414852,0.12578908,4476.4,4476.3,7.91078051]
[1758370415025,0.35258908,4476.4,4476.3,10.1447684]
[1758370415221,0.35458908,4476.4,4476.3,10.1447684]
[1758370418254,0.35458908,4476.4,4476.3,7.91078051]
[1758370418552,0.35458908,4476.4,4476.3,6.42]
[1758370420058,0.35458908,4476.4,4476.3,8.65398789]
[1758370422238,0.35458908,4476.4,4476.3,6.42]
[1758370423058,0.35458908,4476.4,4476.3,8.65398789]
[1758370423059,0.12778908,4476.4,4476.3,8.65398789]
[1758370423262,0.002,4476.4,4476.3,14.80311301]
[1758370429187,0.002,4476.4,4476.3,10.54008981]
[1758370429392,0.002,4476.4,4476.3,14.80311301]
[1758370432466,0.002,4476.4,4476.3,14.80411301]
[1758370433879,0.002,4476.4,4476.3,18.79111297]
[1758370434454,0.002,4476.4,4476.3,21.79111297]
[1758370446537,0.002,4476.8,4476.7,3.02578828]
[1758370446737,0.002,4476.8,4476.7,15.29572815]
[1758370446916,0.002,4476.8,4476.7,15.50229027]
[1758370447114,0.002,4476.8,4476.7,7.31536707]
[1758370447316,0.2277,4476.8,4476.7,2.32307981]
[1758370447647,0.2277,4476.8,4476.7,5.626]
[1758370447845,0.2277,4476.8,4476.7,1.931]
[1758370448072,0.2277,4476.8,4476.7,5.629]
[1758370448722,0.89919621,4476.8,4476.7,5.629]
[1758370448948,0.89919621,4476.8,4476.7,6.421]
[1758370457067,0.2277,4476.8,4476.7,6.421]
[1758370460970,0.002,4476.8,4476.7,6.421]
[1758370461173,0.2286,4476.8,4476.7,6.421]
[1758370470582,0.002,4476.8,4476.7,6.421]
[1758370471120,0.2286,4476.8,4476.7,6.421]
[1758370471910,0.002,4476.8,4476.7,8.65478828]
[1758370472586,0.002,4476.8,4476.7,6.421]
[1758370472902,0.2286,4476.8,4476.7,6.421]
[1758370474083,4.4916232,4476.8,4476.7,6.421]
[1758370474289,4.61694456,4476.8,4476.7,6.421]
[1758370476722,0.35392136,4476.8,4476.7,6.421]
[1758370478422,0.12732136,4476.8,4476.7,6.421]
[1758370478926,0.35392136,4476.8,4476.7,6.421]
[1758370482523,0.12732136,4476.8,4476.7,6.421]
[1758370484032,0.37712136,4476.8,4476.7,6.421]
[1758370486231,0.37712136,4476.8,4476.7,4.49]
[1758370486602,0.37712136,4476.8,4476.6,0.001]
[1758370486798,0.12532136,4476.7,4476.6,0.001]
[1758370487002,0.12532136,4476.7,4476.6,3.7]
[1758370487215,0.37512136,4476.7,4476.6,3.7]
[1758370487447,0.12532136,4476.7,4476.6,4.492]
[1758370497462,0.002,4476.8,4476.7,0.792]
[1758370497660,0.12773538,4476.8,4476.7,0.792]
[1758370500579,0.12773538,4476.8,4476.7,0.81433788]
[1758370502062,0.12773538,4476.8,4476.7,1.06103788]
[1758370502497,0.12773538,4476.8,4476.7,0.81433788]
[1758370504079,0.12776511,4476.8,4476.7,0.81433788]
[1758370504783,2.59870349,4476.8,4476.7,0.792]
[1758370505572,0.36496511,4476.8,4476.7,0.792]
[1758370507199,0.36496511,4476.8,4476.7,0.81433788]
[1758370507379,0.12776511,4476.8,4476.7,0.81433788]
[1758370510303,2.59870349,4476.8,4476.7,0.792]
[1758370510797,0.36496511,4476.8,4476.7,0.792]
[1758370511569,2.59870349,4476.8,4476.7,0.792]
[1758370512479,2.23378828,4476.7,4476.6,0.001]
[1758370512682,2.59675339,4476.7,4476.6,4.492]
[1758370512866,0.36296511,4476.7,4476.6,4.492]
[1758370513502,2.59675339,4476.7,4476.6,4.492]
[1758370514023,2.59675339,4476.7,4476.6,0.793]
[1758370514217,2.59675339,4476.7,4476.6,4.492]
[1758370515428,0.36296511,4476.7,4476.6,4.492]
[1758370515599,2.59675339,4476.7,4476.6,4.492]
[1758370515803,0.36296511,4476.7,4476.6,4.492]
[1758370516987,0.12576511,4476.7,4476.6,4.492]
[1758370517386,0.37436511,4476.7,4476.6,4.492]
[1758370517610,0.12576511,4476.7,4476.6,4.492]
[1758370523855,2.35955339,4476.7,4476.6,4.492]
[1758370524653,2.60815339,4476.7,4476.6,4.492]
[1758370525151,0.37436511,4476.7,4476.6,4.492]
[1758370525742,2.60815339,4476.7,4476.6,4.492]
[1758370530677,2.35955339,4476.7,4476.6,4.492]
[1758370531183,0.12576511,4476.7,4476.6,4.492]
[1758370532781,2.35955339,4476.7,4476.6,4.492]
[1758370533172,2.35955339,4476.7,4476.6,4.491]
[1758370534282,2.35955339,4476.7,4476.6,0.793]
[1758370534448,2.35955339,4476.7,4476.6,4.491]
[1758370535297,2.36155339,4476.7,4476.6,4.491]
[1758370537779,2.61015339,4476.7,4476.6,0.001]
[1758370537954,2.81976738,4476.7,4476.6,3.7]
[1758370538857,2.81974945,4476.7,4476.6,3.7]
[1758370539888,2.81972996,4476.7,4476.6,3.7]
[1758370545279,2.81969999,4476.7,4476.6,3.7]
[1758370553699,2.81969999,4476.7,4476.6,0.001]
[1758370553900,2.81969999,4476.7,4476.6,3.699]
[1758370556713,2.57109999,4476.7,4476.6,3.699]
[1758370559573,2.79689999,4476.7,4476.6,3.699]
[1758370559908,2.58730393,4476.7,4476.6,3.699]
[1758370560410,2.79684046,4476.7,4476.6,3.699]
[1758370561795,2.57104046,4476.7,4476.6,3.699]
[1758370564382,2.57104046,4476.7,4476.6,0.001]
[1758370564587,2.81894046,4476.7,4476.6,3.698]
[1758370565708,2.57104046,4476.7,4476.6,3.698]
[1758370566088,2.57108139,4476.7,4476.6,3.698]
[1758370570188,2.81898139,4476.7,4476.6,0.001]
[1758370571732,2.57108139,4476.7,4476.6,0.001]
[1758370576333,0.33729311,4476.7,4476.6,0.2474]
[1758370576505,2.36154486,4476.7,4476.6,0.2474]
[1758370576704,2.57108139,4476.7,4476.6,0.2474]
[1758370577249,2.57108139,4476.7,4476.6,0.001]
[1758370579459,2.79778139,4476.7,4476.6,0.001]
[1758370580068,2.57108139,4476.7,4476.6,0.001]
[1758370581743,2.79778139,4476.7,4476.6,0.001]
[1758370582882,2.57108139,4476.7,4476.6,0.001]
[1758370586053,2.79778139,4476.7,4476.6,0.001]
[1758370586587,2.79789247,4476.7,4476.6,0.001]
[1758370586786,2.57119247,4476.7,4476.6,0.001]
[1758370589573,2.79789247,4476.7,4476.6,0.001]
[1758370590287,2.57119247,4476.7,4476.6,0.001]
[1758370592738,2.79789247,4476.7,4476.6,0.001]
[1758370593779,2.57119247,4476.7,4476.6,0.001]
[1758370594982,2.79789247,4476.7,4476.6,0.001]
[1758370602477,2.79788208,4476.7,4476.6,0.001]
[1758370606096,2.79778661,4476.7,4476.6,0.001]
[1758370620537,2.57108661,4476.7,4476.6,0.001]
[1758370623036,2.57108661,4476.7,4476.6,0.2398]
[1758370624312,2.57108661,4476.7,4476.6,0.001]
[1758370624540,2.571159,4476.7,4476.6,0.001]
[1758370626035,2.571159,4476.7,4476.6,0.2398]
[1758370627952,0.33737072,4476.7,4476.6,0.2398]
[1758370628250,0.33737072,4476.7,4476.6,1.50478]
[1758370628449,0.12773687,4476.7,4476.6,1.50478]
[1758370630352,0.12773687,4476.7,4476.6,1.0318]
[1758370638471,0.12773687,4476.7,4476.6,0.793]
[1758370638768,0.12773687,4476.7,4476.6,1.0248]
[1758370643761,0.12773687,4476.7,4476.6,0.793]
[1758370644105,0.12773687,4476.7,4476.6,1.0248]
[1758370644310,0.12761895,4476.7,4476.6,1.0248]
[1758370644469,0.12761895,4476.7,4476.6,1.72047234]
[1758370645197,0.002,4476.7,4476.6,1.74281072]
[1758370645408,0.12761895,4476.7,4476.6,1.74281072]
[1758370645998,0.002,4476.7,4476.6,1.74281072]
[1758370646905,0.12761772,4476.7,4476.6,3.9766489]
[1758370647111,0.002,4476.7,4476.6,3.95431052]
[1758370647322,0.002,4476.7,4476.6,3.9766489]
[1758370647624,0.002,4476.7,4476.6,4.10426662]
[1758370647774,0.002,4476.7,4476.6,7.80126662]
[1758370648116,0.002,4476.7,4476.6,7.77892824]
[1758370651373,0.002,4476.7,4476.6,11.7659282]
[1758370653001,0.002,4476.7,4476.6,19.80293812]
[1758370659514,0.002,4476.7,4476.6,14.5341282]
[1758370659845,0.002,4476.7,4476.6,14.7659282]
[1758370660235,0.002,4476.7,4476.6,20.8029282]
[1758370665756,0.002,4476.7,4476.6,25.06357004]
[1758370671991,0.002,4476.7,4476.6,24.83177004]
[1758370676360,0.002,4476.7,4476.6,20.5711282]
[1758370676595,0.002,4476.7,4476.6,24.83177004]
[1758370678477,0.002,4476.7,4476.6,25.07387004]
[1758370678680,0.002,4476.7,4476.6,24.83177004]
[1758370686303,0.002,4476.7,4476.6,25.06907004]
[1758370690222,0.002,4476.7,4476.6,24.83177004]
[1758370690814,0.2336,4476.7,4476.6,24.83177004]
[1758370691683,0.002,4476.7,4476.6,24.83177004]
[1758370693802,0.002,4476.7,4476.6,26.76277004]
[1758370697035,0.23,4476.7,4476.6,14.81812824]
[1758370697220,0.23,4476.7,4476.6,17.8184559]
[1758370700522,0.23,4476.7,4476.6,14.1224559]
[1758370700719,0.23,4476.7,4476.6,14.8204559]
[1758370703161,0.23,4476.7,4476.6,11.1224559]
[1758370703464,0.23,4476.7,4476.6,12.458]
[1758370704051,0.23,4476.7,4476.6,12.459]
[1758370708033,0.23,4476.7,4476.6,6.422]
[1758370717739,0.002,4476.7,4476.6,6.422]
[1758370719025,0.23,4476.7,4476.6,6.422]
[1758370723345,2.46378828,4476.7,4476.6,6.422]
[1758370723862,0.23,4476.7,4476.6,6.422]
[1758370729972,0.35550005,4476.7,4476.6,6.422]
[1758370731028,0.63782455,4476.7,4476.6,6.422]
[1758370731229,2.87161283,4476.7,4476.6,6.422]
[1758370731838,2.87161283,4476.7,4476.6,5.63]
[1758370732032,2.87161283,4476.7,4476.6,3.699]
[1758370733122,3.08102522,4476.7,4476.6,3.699]
[1758370733942,3.08102522,4476.7,4476.6,0.001]
[1758370735236,6.08102522,4476.7,4476.6,0.001]
[1758370740358,5.85302522,4476.7,4476.6,0.001]
[1758370742281,5.64361283,4476.7,4476.6,0.001]
[1758370742791,5.87441283,4476.7,4476.6,0.001]
[1758370743494,6.08358466,4476.7,4476.6,0.001]
[1758370747015,5.87441283,4476.7,4476.6,0.001]
[1758370748596,5.64361283,4476.7,4476.6,0.001]
[1758370748802,5.87441283,4476.7,4476.6,0.001]
[1758370749368,6.08360416,4476.7,4476.6,0.001]
[1758370751374,5.64361283,4476.7,4476.6,0.001]
[1758370752073,5.85285228,4476.7,4476.6,0.001]
[1758370752372,5.85285228,4476.7,4476.6,0.2269]
[1758370753504,3.619064,4476.7,4476.6,0.2269]
[1758370753674,5.85285228,4476.7,4476.6,0.2269]
[1758370756001,5.64361283,4476.7,4476.6,0.2269]
[1758370756216,5.85294703,4476.7,4476.6,0.001]
[1758370759785,6.09614703,4476.7,4476.6,0.001]
[1758370760330,5.85294703,4476.7,4476.6,0.001]
[1758370760821,5.85313038,4476.7,4476.6,0.001]
[1758370761236,6.09633038,4476.7,4476.6,0.001]
[1758370764739,6.09660737,4476.7,4476.6,0.001]
[1758370765144,5.85340737,4476.7,4476.6,0.001]
[1758370765291,6.09660737,4476.7,4476.6,0.001]
[1758370772775,6.09673317,4476.7,4476.6,0.001]
[1758370774325,5.85353317,4476.7,4476.6,0.001]
[1758370775412,6.09673317,4476.7,4476.6,0.001]
[1758370776454,5.85353317,4476.7,4476.6,0.001]
[1758370778645,5.85353317,4476.7,4476.6,0.2379]
[1758370778956,5.85353317,4476.7,4476.6,0.001]
[1758370780659,5.85352725,4476.7,4476.6,0.001]
[1758370788937,6.10172725,4476.7,4476.6,0.001]
[1758370798966,5.85352725,4476.7,4476.6,0.001]
[1758370799960,6.10172725,4476.7,4476.6,0.001]
[1758370801594,5.85352725,4476.7,4476.6,0.001]
[1758370803303,6.09865658,4476.7,4476.6,0.001]
[1758370804490,5.85355658,4476.7,4476.6,0.001]
[1758370809319,5.85355658,4476.7,4476.6,0.2391]
[1758370809519,5.57123208,4476.7,4476.6,0.2391]
[1758370809690,5.57123208,4476.7,4476.6,1.0311]
[1758370809691,0.3374438,4476.7,4476.6,1.0311]
[1758370810122,0.12777704,4476.7,4476.6,1.0311]
[1758370811903,0.3374438,4476.7,4476.6,1.0311]
[1758370812419,0.12777704,4476.7,4476.6,1.0311]
[1758370816480,0.12777704,4476.7,4476.6,0.793]
[1758370816689,0.12777704,4476.7,4476.6,0.001]
[1758370816690,10.19898302,4476.7,4476.6,0.001]
[1758370817007,10.07220905,4476.7,4476.6,0.001]
[1758370817313,5.80846906,4476.7,4476.6,0.001]
[1758370827124,5.80839429,4476.7,4476.6,0.001]
[1758370834937,5.57089429,4476.7,4476.6,0.001]
[1758370838743,5.80839429,4476.7,4476.6,0.001]
[1758370839041,5.80840884,4476.7,4476.6,0.001]
[1758370844360,5.81470884,4476.7,4476.6,0.001]
[1758370844702,9.83464883,4476.7,4476.6,0.001]
[1758370844819,10.07844883,4476.7,4476.6,0.001]
[1758370849824,5.81470884,4476.7,4476.6,0.001]
[1758370856356,6.12240338,4476.7,4476.6,0.001]
[1758370859995,5.81470884,4476.7,4476.6,0.001]
[1758370869097,5.57090884,4476.7,4476.6,0.001]
[1758370869600,9.49890884,4476.7,4476.6,0.001]
[1758370885930,9.26890884,4476.7,4476.6,0.001]
[1758370887426,9.26901821,4476.7,4476.6,0.001]
[1758370890928,9.26901821,4476.7,4476.6,0.2276]
[1758370891829,9.26901821,4476.7,4476.6,0.001]
[1758370897136,9.26922391,4476.7,4476.6,0.001]
[1758370899440,5.57122391,4476.7,4476.6,0.001]
[1758370899738,9.26922391,4476.7,4476.6,0.001]
[1758370905024,9.26927439,4476.7,4476.6,0.001]
[1758370909826,13.53431194,4476.7,4476.6,0.001]
[1758370925588,9.83631194,4476.7,4476.6,0.001]
[1758370925758,13.53431194,4476.7,4476.6,0.001]
[1758370929858,5.57127439,4476.7,4476.6,0.001]
[1758370930062,5.57127439,4476.7,4476.6,0.2292]
[1758370930063,6.26927439,4476.7,4476.6,0.2292]
[1758370930264,9.26927439,4476.7,4476.6,0.2292]
[1758370931658,9.26927439,4476.7,4476.6,0.001]
[1758370931659,13.53431194,4476.7,4476.6,0.001]
[1758370934474,14.08930648,4476.7,4476.6,0.001]
[1758370936970,9.82426893,4476.7,4476.6,0.001]
[1758370943025,9.82410954,4476.7,4476.6,0.001]
[1758370943879,2.23413762,4476.0,4475.9,0.001]
[1758370944105,10.75591565,4476.0,4475.9,0.001]
[1758370944280,13.75591565,4476.0,4475.9,0.001]
[1758370944680,13.84549018,4476.0,4475.9,0.001]
[1758370951316,13.84510106,4476.0,4475.9,0.001]
[1758370951927,14.4000956,4476.0,4475.9,0.001]
[1758370953744,13.84510106,4476.0,4475.9,0.001]
[1758370957414,14.09240106,4476.0,4475.9,0.001]
[1758370960546,2.23428737,4475.7,4475.6,0.001]
[1758370960859,13.53426252,4475.7,4475.6,0.001]
[1758370961061,13.78156252,4475.7,4475.6,0.001]
[1758370970048,13.53426252,4475.7,4475.6,0.001]
[1758370970461,13.53426252,4475.7,4475.6,0.2313]
[1758370970864,13.75767628,4475.7,4475.6,0.2313]
[1758370971588,10.05767628,4475.7,4475.6,0.2313]
[1758370971762,9.49263873,4475.7,4475.6,0.2313]
[1758370976895,9.49263873,4475.7,4475.6,0.001]
[1758370977964,5.79263873,4475.7,4475.6,0.001]
[1758370978169,5.56922497,4475.7,4475.6,0.2313]
[1758370978370,9.26922497,4475.7,4475.6,0.2313]
[1758370979468,9.26922497,4475.7,4475.6,0.001]
[1758370981603,9.51762497,4475.7,4475.6,0.001]
[1758370985313,9.26922497,4475.7,4475.6,0.001]
[1758370985816,9.50042497,4475.7,4475.6,0.001]
[1758370986012,9.50242497,4475.7,4475.6,0.001]
[1758370988995,9.27122497,4475.7,4475.6,0.001]
[1758370992039,9.50242497,4475.7,4475.6,0.001]
[1758370998638,9.27122497,4475.7,4475.6,0.001]
[1758370998816,9.50142497,4475.7,4475.6,0.001]
[1758370999753,9.50182803,4475.7,4475.6,0.001]
[1758371001612,9.80952257,4475.7,4475.6,0.001]
[1758371007815,9.80948678,4475.7,4475.6,0.001]
[1758371010942,9.50179224,4475.7,4475.6,0.001]
[1758371011455,9.27159224,4475.7,4475.6,0.001]
[1758371011855,9.50179224,4475.7,4475.6,0.001]
[1758371013486,11.43479224,4475.7,4475.6,0.001]
[1758371015842,11.20359224,4475.7,4475.6,0.2316]
[1758371016043,11.20358541,4475.7,4475.6,0.2316]
[1758371016438,11.20358541,4475.7,4475.6,0.001]
[1758371017144,11.43378541,4475.7,4475.6,0.001]
[1758371017345,11.20358541,4475.7,4475.6,0.001]
[1758371020654,11.20358541,4475.7,4475.6,0.2316]
[1758371021454,11.20358541,4475.7,4475.6,0.001]
[1758371023065,11.20358541,4475.7,4475.6,0.2316]
[1758371025114,7.50458541,4475.7,4475.6,0.001]
[1758371025318,8.20377837,4475.7,4475.6,0.2398]
[1758371025518,4.50477837,4475.7,4475.6,0.2398]
[1758371025722,11.20377837,4475.7,4475.6,0.2398]
[1758371026233,5.57177837,4475.7,4475.6,0.2398]
[1758371026395,6.27077837,4475.7,4475.6,0.2398]
[1758371026583,2.57177837,4475.7,4475.6,0.2398]
[1758371026782,5.57177837,4475.7,4475.6,0.2398]
[1758371028078,9.27177837,4475.7,4475.6,0.2398]
[1758371033321,9.27117865,4475.7,4475.6,0.2398]
[1758371033520,9.27116462,4475.7,4475.6,0.2398]
[1758371036432,5.57116462,4475.7,4475.6,0.2398]
[1758371036583,9.14458039,4475.7,4475.6,0.2398]
[1758371036789,9.27013663,4475.7,4475.6,0.2398]
[1758371038420,5.57113663,4475.7,4475.6,0.2398]
[1758371038605,9.27013663,4475.7,4475.6,0.2398]
[1758371040743,9.06084361,4475.7,4475.6,0.2398]
[1758371042346,5.36184361,4475.7,4475.6,0.2398]
[1758371045933,5.57110468,4475.7,4475.6,0.001]
[1758371048866,5.79870468,4475.7,4475.6,0.001]
[1758371049365,10.06468686,4475.7,4475.6,0.001]
[1758371055776,10.06521683,4475.7,4475.6,0.001]
[1758371060383,9.83761683,4475.7,4475.6,0.001]
[1758371063486,10.07891683,4475.7,4475.6,0.001]
[1758371067599,10.07886812,4475.7,4475.6,0.001]
[1758371070971,9.83756812,4475.7,4475.6,0.001]
[1758371071456,10.07886812,4475.7,4475.6,0.001]
[1758371073993,9.83756812,4475.7,4475.6,0.001]
[1758371075857,10.07886812,4475.7,4475.6,0.001]
[1758371076663,9.83756812,4475.7,4475.6,0.001]
[1758371077077,10.07886812,4475.7,4475.6,0.001]
[1758371077679,9.83756812,4475.7,4475.6,0.001]
[1758371080613,13.53656812,4475.7,4475.6,0.001]
[1758371085801,9.83756812,4475.7,4475.6,0.001]
[1758371085968,13.53656812,4475.7,4475.6,0.001]
[1758371091897,9.27058594,4475.7,4475.6,0.001]
[1758371093280,9.27058594,4475.7,4475.6,0.2462]
[1758371093476,9.27058594,4475.7,4475.6,0.001]
[1758371093912,9.27058594,4475.7,4475.6,0.2462]
[1758371094113,9.27058594,4475.7,4475.6,0.001]
[1758371095316,9.27066767,4475.7,4475.6,0.001]
[1758371097808,9.27084391,4475.7,4475.6,0.001]
[1758371102992,9.51364391,4475.7,4475.6,0.001]
[1758371121604,9.27084391,4475.7,4475.6,0.001]
[1758371122860,5.57184391,4475.7,4475.6,0.001]
[1758371123087,9.26984391,4475.7,4475.6,0.001]
[1758371125706,9.26979489,4475.7,4475.6,0.001]
[1758371134715,9.50879489,4475.7,4475.6,0.001]
[1758371146256,9.26979489,4475.7,4475.6,0.001]
[1758371147817,9.50589489,4475.7,4475.6,0.001]
[1758371149588,9.81358943,4475.7,4475.6,0.001]
[1758371151862,14.85345456,4475.7,4475.6,0.001]
[1758371153778,14.0808777,4475.7,4475.6,0.001]
[1758371155881,14.08085118,4475.7,4475.6,0.001]
[1758371157378,14.08086631,4475.7,4475.6,0.001]
[1758371160682,13.77317177,4475.7,4475.6,0.001]
[1758371160887,13.77316114,4475.7,4475.6,0.001]
[1758371161784,13.53706114,4475.7,4475.6,0.001]
[1758371163573,9.26977287,4475.7,4475.6,0.001]
[1758371163786,13.53706114,4475.7,4475.6,0.001]
[1758371163980,13.5370594,4475.7,4475.6,0.2337]
[1758371166103,13.5370594,4475.7,4475.6,0.001]
[1758371173314,9.8390594,4475.7,4475.6,0.001]
[1758371173515,9.8390594,4475.7,4475.6,0.2337]
[1758371176212,9.8390594,4475.7,4475.6,0.001]
[1758371183640,5.57177113,4475.7,4475.6,0.001]
[1758371183845,9.83904295,4475.7,4475.6,0.001]
[1758371187749,9.83901693,4475.7,4475.6,0.001]
[1758371188048,10.07551693,4475.7,4475.6,0.001]
[1758371189654,9.83901693,4475.7,4475.6,0.001]
[1758371191357,10.07551693,4475.7,4475.6,0.001]
[1758371200052,9.83901693,4475.7,4475.6,0.001]
[1758371200449,5.57172866,4475.7,4475.6,0.243]
[1758371200653,0.33744129,4475.7,4475.6,1.035]
[1758371200851,0.12779048,4475.7,4475.6,1.035]
[1758371201051,0.12779048,4475.7,4475.6,0.243]
[1758371201290,2.36207785,4475.7,4475.6,0.243]
[1758371201665,2.5715854,4475.7,4475.6,0.243]
[1758371204754,2.5715854,4475.7,4475.6,0.001]
[1758371206304,2.5715854,4475.7,4475.6,0.2502]
[1758371207602,2.5715854,4475.7,4475.6,0.001]
[1758371215500,2.5710659,4475.7,4475.6,0.001]
[1758371220505,2.8019659,4475.7,4475.6,0.001]
[1758371223403,2.5710659,4475.7,4475.6,0.001]
[1758371237843,2.57183825,4475.7,4475.6,0.001]
[1758371238720,2.82123825,4475.7,4475.6,0.001]
[1758371240765,2.57183825,4475.7,4475.6,0.001]
[1758371244583,5.82123825,4475.7,4475.6,0.001]
[1758371245522,6.12893279,4475.7,4475.6,0.001]
[1758371246334,2.23448707,4475.3,4475.2,0.001]
[1758371246566,7.60933454,4475.3,4475.2,0.001]
[1758371246761,10.85873454,4475.3,4475.2,0.001]
[1758371247069,10.94832532,4475.3,4475.2,0.001]
[1758371247431,10.94814591,4475.3,4475.2,0.001]
[1758371248177,5.90884932,4475.3,4475.2,0.001]